bitfinex/quotes_ETHUSD_20240927
["timestamp","ask_amount","ask_price","bid_price","bid_amount"]
[1727459659740,4.53338,2700.6,2700.0,3.7037]
[1727459659741,8.23639,2700.6,2700.0,3.7037]
[1727459660071,3.70303,2700.5,2700.0,3.7037]
[1727459660769,4.53338,2700.6,2699.9,3.70375]
[1727459660940,3.70318,2700.4,2699.9,3.70375]
[1727459661671,3.70318,2700.4,2699.7,3.74993]
[1727459661672,0.55,2700.3,2699.7,3.74993]
[1727459661872,4.25336,2700.3,2699.8,3.70393]
[1727459664465,4.53342,2700.6,2699.8,0.745386]
[1727459664762,4.53342,2700.6,2700.0,3.70359]
[1727459664763,0.8305,2700.6,2700.0,3.70359]
[1727459664936,3.70309,2700.5,2700.0,3.70359]
[1727459666166,3.70315,2700.4,2700.0,3.70359]
[1727459666469,4.5347,2700.2,2699.7,3.70401]
[1727459667265,4.5347,2700.2,2699.8,3.70396]
[1727459667592,0.8312,2700.2,2699.8,3.70396]
[1727459670572,0.8312,2700.2,2699.9,3.70383]
[1727459670973,0.8312,2700.2,2699.9,0.740784]
[1727459671186,3.70283,2700.7,2700.1,3.70348]
[1727459671358,4.49993,2700.7,2700.1,3.70348]
[1727459671559,0.7971,2700.7,2700.4,3.70309]
[1727459671881,4.49854,2701.7,2700.7,3.70269]
[1727459672087,3.70198,2701.3,2700.8,3.70258]
[1727459672276,1.514876,2701.2,2700.8,3.70258]
[1727459672985,0.7745,2701.2,2700.8,3.70258]
[1727459673364,4.47656,2701.2,2700.6,7.45151]
[1727459673585,4.47656,2701.2,2700.7,3.70269]
[1727459674225,3.70219,2701.1,2700.6,3.74864]
[1727459674598,4.924216,2701.2,2700.6,3.74864]
[1727459674835,3.70223,2701.1,2700.6,3.70274]
[1727459676835,3.70249,2700.9,2700.4,3.70305]
[1727459677924,3.70249,2700.9,2700.4,7.40612]
[1727459678161,3.70249,2700.9,2700.4,3.70305]
[1727459678655,4.5651046,2701.0,2700.5,3.70291]
[1727459678856,3.70248,2700.9,2700.5,3.70291]
[1727459679051,3.70223,2701.1,2700.5,3.70291]
[1727459679237,3.70235,2701.0,2700.5,7.40584]
[1727459680546,3.70235,2701.0,2700.5,3.70301]
[1727459681579,3.70253,2700.9,2700.4,3.70314]
[1727459681738,3.70247,2700.9,2700.5,3.70294]
[1727459681940,3.70247,2700.9,2700.3,3.70323]
[1727459681941,0.7827,2700.7,2700.3,3.70329]
[1727459682530,0.7827,2700.7,2700.3,7.40651]
[1727459682849,0.7827,2700.7,2700.4,3.70315]
[1727459683365,0.7827,2700.7,2700.3,3.70322]
[1727459683555,0.7827,2700.7,2700.3,3.70321]
[1727459684219,0.7827,2700.7,2700.3,7.40642]
[1727459684615,0.7827,2700.7,2700.4,3.70314]
[1727459685553,1.2682637,2700.7,2700.2,3.70334]
[1727459685755,4.9710737,2700.7,2700.2,3.70334]
[1727459686632,4.9710737,2700.7,2700.3,3.70328]
[1727459687048,1.2682637,2700.7,2700.3,7.4065]
[1727459687365,0.7827,2700.7,2700.3,3.70322]
[1727459687662,4.48551,2700.7,2700.2,3.70342]
[1727459688066,0.7827,2700.7,2700.3,3.70326]
[1727459688258,1.231231,2700.7,2700.3,3.70326]
[1727459688973,0.7865,2700.9,2700.6,3.70276]
[1727459689339,0.7865,2700.9,2700.6,7.40557]
[1727459689669,0.7865,2700.9,2700.6,3.70276]
[1727459690769,3.70205,2701.2,2700.8,3.70259]
[1727459690949,0.370216,2701.1,2700.8,3.70259]
[1727459691736,4.072416,2701.1,2700.6,7.40554]
[1727459692071,4.072416,2701.1,2700.7,3.70271]
[1727459692236,0.370216,2701.1,2700.7,3.70271]
[1727459692437,4.072426,2701.1,2700.6,3.70276]
[1727459692760,0.4072266,2701.0,2700.6,7.40558]
[1727459692959,4.45914,2701.3,2700.8,3.7025]
[1727459693171,5.275229,2701.3,2700.8,3.7025]
[1727459693475,4.45914,2701.3,2700.8,3.7025]
[1727459693835,4.45914,2701.3,2700.6,3.70278]
[1727459693836,3.70216,2701.2,2700.7,3.70272]
[1727459694035,3.70229,2701.1,2700.6,3.70278]
[1727459694275,7.40458,2701.1,2700.6,3.70278]
[1727459694464,3.70229,2701.1,2700.6,3.70278]
[1727459694839,7.40457,2701.1,2700.6,3.70278]
[1727459695079,3.70228,2701.1,2700.6,3.70278]
[1727459695576,3.70239,2701.0,2700.6,3.70278]
[1727459696860,0.7572,2701.3,2700.4,0.0459]
[1727459697039,0.7683,2701.8,2701.3,3.70179]
[1727459697236,3.70093,2702.1,2701.5,3.70164]
[1727459697237,0.7683,2702.0,2701.5,3.70164]
[1727459697941,0.7683,2702.0,2701.2,3.95653064]
[1727459697942,3.70123,2701.8,2701.3,3.70191]
[1727459698343,3.7011,2701.9,2701.3,7.4037]
[1727459698580,4.14805,2701.9,2701.3,3.70179]
[1727459698880,4.14805,2701.9,2701.3,7.40361]
[1727459699179,0.7683,2702.0,2701.6,3.70143]
[1727459699353,0.7683,2702.0,2701.1,3.74807]
[1727459699354,0.7683,2703.2,2702.2,0.0459]
[1727459699679,3.69965,2703.0,2702.4,3.70033]
[1727459699890,0.7683,2702.8,2702.2,0.0459]
[1727459700190,0.7683,2702.8,2702.1,3.59684604]
[1727459700191,3.7,2702.7,2702.1,7.29759604]
[1727459700481,4.14681,2702.7,2702.1,3.59684604]
[1727459700842,4.14681,2702.7,2702.1,7.29763604]
[1727459701178,0.7813,2703.1,2702.6,3.59684604]
[1727459701401,2.46298113,2704.4,2704.0,3.69813]
[1727459701402,0.84124999,2704.4,2704.0,3.69813]
[1727459701541,0.7813,2704.5,2703.2,0.0459]
[1727459701542,3.69817,2704.1,2703.3,3.6991]
[1727459701851,3.69817,2704.1,2702.8,3.69983]
[1727459701852,0.3863826,2703.3,2702.9,3.69966]
[1727459702053,4.47962,2704.0,2703.1,7.29621604]
[1727459702256,3.59684604,2703.9,2702.6,3.70002]
[1727459702578,3.69975,2702.9,2702.0,0.0459]
[1727459702779,3.69951,2703.1,2702.3,3.70052]
[1727459703089,0.446961,2703.0,2702.4,3.70032]
[1727459703288,0.7701,2703.2,2702.5,3.70024]
[1727459703445,0.55,2703.1,2702.1,3.70078]
[1727459703784,0.3596846,2703.8,2702.9,7.29646604]
[1727459703785,0.7701,2703.7,2702.9,7.29646604]
[1727459703952,0.7701,2703.7,2703.1,3.69932]
[1727459704294,0.7701,2704.1,2703.3,3.69909]
[1727459704579,1.139901,2704.1,2703.7,3.69862]
[1727459704740,0.7701,2704.1,2703.7,3.69854]
[1727459704942,3.59684604,2704.8,2703.6,3.69872]
[1727459704943,0.7701,2704.5,2703.6,3.69872]
[1727459705146,0.7701,2704.9,2704.4,3.69759]
[1727459705366,0.7701,2704.9,2704.5,3.69744]
[1727459705582,0.7701,2704.9,2704.4,3.69759]
[1727459705743,0.7701,2704.9,2704.5,3.69744]
[1727459705943,0.7701,2704.9,2704.2,3.69787]
[1727459706143,0.7701,2704.9,2704.6,3.69736]
[1727459707277,0.7701,2704.9,2704.4,7.39519]
[1727459707481,0.7701,2704.9,2704.5,3.6975]
[1727459707788,0.7701,2704.9,2704.1,3.69798]
[1727459707789,3.69736,2704.7,2704.1,3.69798]
[1727459708003,8.266203,2704.7,2704.1,3.69798]
[1727459708159,0.55,2704.6,2703.7,3.74442]
[1727459708360,3.69775,2704.4,2703.8,3.69846]
[1727459708678,3.69775,2704.4,2703.7,3.69854]
[1727459708679,0.8133,2704.3,2703.7,3.69854]
[1727459708888,4.51112,2704.3,2703.7,3.69854]
[1727459709971,4.51112,2704.3,2703.7,7.39709]
[1727459710172,5.3744855,2704.3,2703.7,3.69854]
[1727459710772,5.3744855,2704.3,2703.5,3.69883]
[1727459710773,3.698,2704.2,2703.5,3.69883]
[1727459711105,7.39652,2704.0,2703.3,7.39821]
[1727459711401,0.55,2704.2,2703.1,3.74529]
[1727459711645,3.69873,2703.7,2703.1,3.69945]
[1727459711826,3.59684604,2704.0,2702.9,3.69968]
[1727459712094,3.69905,2703.4,2702.9,3.69968]
[1727459712409,0.8055,2703.6,2703.1,3.69936]
[1727459712703,4.50435,2703.6,2703.1,3.69945]
[1727459712886,3.69892,2703.5,2703.0,3.69956]
[1727459713075,4.954785,2703.6,2703.0,3.69949]
[1727459713488,3.69894,2703.5,2703.0,3.69949]
[1727459713679,4.954785,2703.6,2703.1,3.69944]
[1727459713879,3.69892,2703.5,2703.0,3.69949]
[1727459714198,3.69878,2703.6,2703.1,3.69936]
[1727459714393,3.6986,2703.8,2703.1,3.69936]
[1727459714594,3.69864,2703.7,2703.1,3.69936]
[1727459714803,3.6986,2703.8,2703.1,3.69936]
[1727459714965,3.6986,2703.8,2703.2,3.69928]
[1727459715579,3.69878,2703.6,2703.1,3.69936]
[1727459715780,0.36986,2703.7,2703.1,3.69933]
[1727459715988,3.69845,2703.9,2703.4,3.69898]
[1727459717187,3.6983,2704.0,2703.5,3.6989]
[1727459717394,0.22266655,2704.1,2703.6,3.69875]
[1727459717591,3.69832,2704.0,2703.4,3.69892]
[1727459717789,4.17229465,2704.0,2703.4,3.69892]
[1727459717991,4.17229465,2704.0,2703.4,7.39787]
[1727459718184,4.17229465,2704.0,2703.5,3.6989]
[1727459718826,7.87059465,2704.0,2703.4,3.69892]
[1727459719159,4.17227465,2704.0,2703.4,3.69892]
[1727459719417,4.17227465,2704.0,2703.4,7.39787]
[1727459719635,7.87057465,2704.0,2703.4,3.69892]
[1727459719919,4.17227465,2704.0,2703.4,7.39785]
[1727459720125,0.8275,2704.5,2703.5,0.0459]
[1727459720280,3.69789,2704.3,2703.8,3.69842]
[1727459720484,4.150429,2704.3,2703.8,3.69842]
[1727459720823,0.452539,2704.3,2703.8,3.69842]
[1727459721320,0.452539,2704.3,2700.9,3.67372133]
[1727459721321,0.8286,2705.0,2704.4,3.69767]
[1727459721522,0.8286,2705.0,2704.5,0.0739422]
[1727459721698,0.8286,2705.0,2704.3,3.69778]
[1727459721905,0.8286,2705.0,2704.5,3.69752]
[1727459722228,4.52549,2705.0,2704.3,3.69778]
[1727459722401,4.978032,2705.0,2704.3,3.69778]
[1727459722604,4.978032,2705.0,2704.3,3.69773]
[1727459722798,4.978032,2705.0,2704.3,3.69772]
[1727459723231,4.978032,2705.0,2704.3,7.39545]
[1727459723408,4.978032,2705.0,2704.3,3.6977]
[1727459723409,0.8674852,2704.9,2704.3,3.6977]
[1727459723611,0.8674852,2704.9,2704.3,7.39543]
[1727459723796,0.8674852,2704.9,2704.4,3.69759]
[1727459723997,0.8674852,2704.9,2704.3,3.6977]
[1727459724630,0.8674852,2704.9,2704.3,7.39542]
[1727459724840,0.53929752,2704.8,2704.3,3.6977]
[1727459725139,0.53929752,2704.8,2704.4,3.69755]
[1727459725342,0.53929752,2704.8,2704.3,3.6977]
[1727459725511,3.69644,2705.3,2704.7,3.69715]
[1727459725701,3.59684604,2705.3,2704.4,3.69758]
[1727459725896,4.0563946,2705.2,2704.6,3.69738]
[1727459726134,0.7891,2705.1,2704.6,3.69738]
[1727459726296,0.7891,2705.1,2704.6,7.39469]
[1727459726501,0.7891,2705.1,2704.6,3.69731]
[1727459726813,4.48584,2705.1,2704.5,3.69751]
[1727459727010,0.48454946,2705.0,2704.5,3.69751]
[1727459727544,0.48454946,2705.0,2704.4,3.6976]
[1727459727545,4.18141946,2705.0,2704.4,3.6976]
[1727459727745,0.49705195,2704.9,2704.2,3.69782]
[1727459727899,0.49705195,2704.9,2704.4,3.69765]
[1727459728243,4.19406195,2704.9,2704.4,3.69765]
[1727459728412,0.49705195,2704.9,2704.4,3.69758]
[1727459728908,0.3596846,2705.2,2704.5,0.0459]
[1727459729117,3.69638,2705.4,2704.9,3.69698]
[1727459729648,1.17555582,2705.7,2704.9,3.69698]
[1727459729649,0.38645582,2705.7,2705.1,3.69668]
[1727459729830,0.13203,2705.8,2705.3,3.69632]
[1727459729998,3.82784,2705.8,2705.1,3.69661]
[1727459730200,0.13203,2705.8,2705.4,3.69622]
[1727459730440,0.13203,2705.8,2705.6,3.74192]
[1727459730638,0.13203,2705.8,2705.7,3.6959]
[1727459730844,0.13203,2705.8,2705.7,1.1034666]
[1727459731058,0.13203,2705.8,2705.7,4.7993666]
[1727459731637,0.13203,2705.8,2705.6,0.0459]
[1727459731839,0.7661,2705.7,2704.9,4.066638]
[1727459732029,0.459399,2705.6,2704.8,0.0459]
[1727459732235,0.7661,2705.7,2704.9,3.6969]
[1727459732434,0.7661,2705.7,2705.0,3.69685]
[1727459732857,3.69611,2705.6,2704.8,3.74293]
[1727459733057,3.69645,2705.3,2704.8,0.0459]
[1727459733237,3.69645,2705.3,2704.6,3.69734]
[1727459733570,0.45939,2705.6,2704.5,0.0459]
[1727459733571,3.69667,2705.2,2704.5,0.0459]
[1727459733720,3.69639,2705.4,2704.5,0.0459]
[1727459733926,0.55,2705.6,2704.5,0.0459]
[1727459734126,3.69655,2705.3,2704.5,0.0459]
[1727459734442,0.369655,2705.3,2704.7,3.69723]
[1727459734765,3.69643,2705.4,2704.7,3.69723]
[1727459734969,0.13203,2705.8,2704.6,4.41539118]
[1727459735121,3.69624,2705.5,2704.8,3.69703]
[1727459735323,3.69647,2705.3,2704.5,0.0459]
[1727459735558,0.8204,2705.4,2704.5,0.0459]
[1727459735559,3.6966,2705.2,2704.5,3.74343]
[1727459735822,4.51672,2705.4,2704.3,3.0]
[1727459735823,3.69688,2705.0,2704.3,3.0]
[1727459736065,3.69688,2705.0,2704.2,4.46129118]
[1727459736066,3.69688,2705.0,2704.2,0.0459]
[1727459736238,3.69688,2705.0,2704.3,3.69771]
[1727459736437,7.39383,2705.0,2704.3,3.69771]
[1727459736653,4.436263,2705.0,2704.3,3.69771]
[1727459736873,4.436263,2705.0,2704.2,0.0459]
[1727459736874,3.69706,2704.9,2704.2,0.0459]
[1727459737078,3.69706,2704.9,2704.2,3.74382]
[1727459737247,4.51672,2705.4,2704.2,3.74382]
[1727459737248,3.69645,2705.3,2704.5,3.69749]
[1727459737429,3.69645,2705.3,2704.7,3.69724]
[1727459738154,4.51676,2705.4,2704.7,3.69724]
[1727459738357,3.69647,2705.3,2704.7,3.69724]
[1727459738523,0.8204,2705.4,2704.7,3.69714]
[1727459738728,3.69651,2705.3,2704.7,3.69714]
[1727459739175,3.69661,2705.2,2704.6,3.6974]
[1727459739468,3.69651,2705.3,2704.7,3.69713]
[1727459739655,4.51676,2705.4,2704.8,3.6971]
[1727459739970,5.338064,2705.4,2704.8,3.6971]
[1727459740333,3.69644,2705.3,2704.7,3.69726]
[1727459740961,3.69659,2705.2,2704.7,3.69726]
[1727459741160,1.641704,2705.4,2704.7,4.5106825]
[1727459741161,3.69645,2705.3,2704.7,4.5106825]
[1727459741331,3.69661,2705.2,2704.7,4.5106825]
[1727459741525,3.69661,2705.2,2704.7,0.8134225]
[1727459742067,3.69645,2705.3,2704.7,0.8134225]
[1727459742272,0.8204,2705.4,2704.2,15.50920118]
[1727459742273,3.69672,2705.1,2704.4,3.69759]
[1727459742568,3.69712,2704.9,2704.3,3.69771]
[1727459742869,3.69681,2705.1,2704.5,3.69753]
[1727459742870,3.69697,2705.0,2704.5,3.69753]
[1727459743879,3.69714,2704.8,2704.4,3.69764]
[1727459744056,3.69714,2704.8,2704.3,3.6978]
[1727459744856,3.69728,2704.7,2704.3,3.6978]
[1727459745178,3.69717,2704.8,2704.3,7.39553]
[1727459745381,3.69717,2704.8,2704.3,8.874673]
[1727459745570,3.69717,2704.8,2704.3,5.176873]
[1727459746071,3.69711,2704.9,2704.4,3.69754]
[1727459746258,3.69719,2704.8,2704.3,5.176873]
[1727459746794,3.69719,2704.8,2704.2,0.0459]
[1727459746795,0.8209,2704.8,2704.2,0.0459]
[1727459746941,4.51812,2704.8,2703.9,0.0459]
[1727459747140,6.82789,2705.8,2704.4,3.69766]
[1727459747141,4.08299312,2705.3,2704.4,3.69766]
[1727459747373,3.69697,2705.0,2704.4,7.39532]
[1727459747687,3.69709,2704.9,2704.4,3.69766]
[1727459748886,3.69709,2704.9,2704.4,7.39526]
[1727459749597,3.69709,2704.9,2704.4,3.6976]
[1727459749948,4.08298312,2705.3,2704.8,3.69711]
[1727459750170,3.69651,2705.3,2704.8,3.69711]
[1727459751383,3.69642,2705.4,2704.8,3.69711]
[1727459751384,3.69659,2705.2,2704.8,3.69711]
[1727459752589,3.69659,2705.2,2704.5,3.74333]
[1727459752790,3.69659,2705.2,2704.7,3.69725]
[1727459753486,7.3933,2705.2,2704.7,3.69725]
[1727459753686,3.69659,2705.2,2704.7,3.69725]
[1727459753893,7.39329,2705.2,2704.7,3.69725]
[1727459754391,3.69659,2705.2,2704.7,3.69725]
[1727459754891,7.39325,2705.2,2704.7,3.69725]
[1727459755062,3.69659,2705.2,2704.7,3.69725]
[1727459755265,3.69672,2705.1,2704.7,3.69725]
[1727459755459,3.69687,2705.0,2704.6,3.69735]
[1727459755649,3.69699,2704.9,2704.5,3.69753]
[1727459755962,3.69699,2704.9,2704.4,4.437215]
[1727459756161,3.69699,2704.9,2704.3,3.6977]
[1727459756360,3.69741,2704.6,2704.2,0.0459]
[1727459756563,3.69741,2704.6,2704.1,11.04799]
[1727459757487,3.69741,2704.6,2704.2,3.69791]
[1727459758199,3.69741,2704.6,2704.1,11.04799]
[1727459758200,3.69758,2704.5,2704.1,3.69799]
[1727459758552,3.69731,2704.7,2704.1,3.69799]
[1727459758790,3.69742,2704.6,2704.1,7.39601]
[1727459758954,3.69742,2704.6,2704.1,4.53134437]
[1727459759451,3.69742,2704.6,2704.1,8.22932437]
[1727459759648,3.69742,2704.6,2704.1,4.53133437]
[1727459760091,3.69742,2704.6,2704.1,8.22934437]
[1727459760400,3.69828,2704.0,2703.5,3.69882]
[1727459760579,7.766428,2704.0,2703.5,3.69882]
[1727459760749,7.766428,2704.0,2703.3,3.69914]
[1727459760750,0.7657,2704.0,2703.3,3.69914]
[1727459760954,3.69858,2703.8,2703.3,3.69914]
[1727459761176,3.69865,2703.7,2703.3,3.69914]
[1727459761450,3.69838,2703.9,2703.3,3.69914]
[1727459761651,3.6985,2703.8,2703.3,3.69914]
[1727459762462,3.69863,2703.7,2703.1,3.74525]
[1727459762672,3.69904,2703.4,2703.0,3.69949]
[1727459762883,3.69837,2703.9,2702.8,3.74569]
[1727459763066,3.69883,2703.6,2703.1,3.69943]
[1727459763273,7.39767,2703.6,2703.1,3.69943]
[1727459763460,3.69891,2703.5,2703.1,3.69943]
[1727459763859,0.7657,2704.0,2703.2,0.52847073]
[1727459764243,3.69772,2704.4,2703.9,3.69836]
[1727459764506,3.69823,2704.0,2703.5,7.39766]
[1727459764801,0.7504,2703.9,2703.5,3.69882]
[1727459765156,0.7504,2704.5,2704.1,3.69805]
[1727459765357,4.44762,2704.8,2704.3,3.69773]
[1727459765558,4.44762,2704.8,2704.2,3.69785]
[1727459765758,4.44762,2704.8,2704.3,3.6978]
[1727459766053,4.44761,2704.8,2704.2,3.77180032]
[1727459766252,4.44761,2704.8,2704.3,3.69778]
[1727459766466,4.44761,2704.8,2704.3,3.69777]
[1727459767368,0.7504,2704.8,2704.5,3.6975]
[1727459767570,3.6964,2705.4,2704.5,0.07394012]
[1727459767771,3.6964,2705.4,2705.0,3.69677]
[1727459767772,0.7504,2705.3,2705.0,3.69677]
[1727459768043,3.69612,2705.6,2705.0,7.39351]
[1727459768044,3.69605,2705.6,2705.0,7.39351]
[1727459768192,3.69605,2705.6,2705.0,3.69673]
[1727459768510,4.44632,2705.7,2705.0,3.69673]
[1727459768673,4.44632,2705.7,2705.2,3.69657]
[1727459768857,5.273742,2705.7,2705.2,3.69657]
[1727459770563,0.7504,2705.7,2705.4,3.69627]
[1727459770904,0.13203,2705.8,2705.4,3.69627]
[1727459771063,0.13203,2705.8,2705.5,3.69608]
[1727459771263,0.13203,2705.8,2705.7,3.6959]
[1727459772171,0.13203,2705.8,2705.6,3.76904583]
[1727459772479,0.13203,2705.8,2705.7,3.6959]
[1727459772686,0.13203,2705.8,2705.6,3.76898583]
[1727459773088,0.13203,2705.8,2705.6,3.76895583]
[1727459773470,0.13203,2705.8,2705.6,0.07302583]
[1727459773665,0.13203,2705.8,2705.5,3.81597174]
[1727459774113,0.13203,2705.8,2705.5,0.0459]
[1727459774263,3.69609,2705.6,2704.9,6.7428]
[1727459774469,0.13203,2705.8,2704.9,4.89671912]
[1727459774777,0.13203,2705.8,2705.3,3.69633]
[1727459775388,0.13203,2705.8,2705.3,7.39269]
[1727459775608,0.13203,2705.8,2705.1,3.69663]
[1727459776119,0.8205,2705.5,2704.9,12.29048912]
[1727459776607,4.51668,2705.5,2704.9,5.59356912]
[1727459778777,3.69614,2705.6,2705.1,3.69671]
[1727459779513,4.530597,2705.6,2705.1,3.69671]
[1727459779675,3.69618,2705.5,2705.1,3.69671]
[1727459781297,0.834457,2705.6,2705.1,3.69671]
[1727459781591,4.530557,2705.6,2705.1,3.69671]
[1727459782195,3.69618,2705.5,2704.9,7.43973]
[1727459782392,3.69618,2705.5,2704.7,7.35]
[1727459782393,4.1493437,2705.5,2704.7,7.35]
[1727459782602,3.69598,2705.7,2704.7,11.04722]
[1727459782918,3.69618,2705.5,2705.0,7.39363]
[1727459783284,3.69618,2705.5,2705.0,7.39356]
[1727459783626,3.69618,2705.5,2705.0,3.69678]
[1727459783919,3.69618,2705.5,2705.1,3.6967]
[1727459785122,0.95253,2705.8,2705.1,3.6967]
[1727459785331,0.95253,2705.8,2705.2,0.0459]
[1727459785484,3.69597,2705.7,2705.3,3.69642]
[1727459786240,3.69644,2705.3,2704.6,3.6974]
[1727459786528,7.39297,2705.3,2704.7,3.69716]
[1727459786891,3.69665,2705.2,2704.7,3.69716]
[1727459787233,3.69665,2705.2,2704.8,3.69711]
[1727459787440,3.69645,2705.3,2704.8,3.69711]
[1727459789345,3.69661,2705.2,2704.8,3.69711]
[1727459789701,3.69661,2705.2,2704.7,3.69726]
[1727459790412,3.69661,2705.2,2704.8,3.69711]
[1727459790624,4.89820038,2705.6,2704.9,3.74287]
[1727459790948,1.20205038,2705.6,2705.1,3.69672]
[1727459791121,1.20205038,2705.6,2705.2,3.69652]
[1727459791327,0.8156,2705.6,2705.2,3.69652]
[1727459791636,0.8156,2705.6,2705.3,3.69644]
[1727459792018,4.51167,2705.6,2705.1,7.767482]
[1727459792349,4.51167,2705.6,2705.1,7.39322]
[1727459792556,0.8156,2705.6,2705.2,3.69654]
[1727459792721,3.8278,2705.8,2705.4,3.69625]
[1727459792921,0.13203,2705.8,2705.4,7.39249]
[1727459796914,3.69359,2707.4,2706.6,3.7405]
[1727459797110,3.69359,2707.4,2706.6,0.0459]
[1727459797314,4.50811,2707.3,2706.6,0.0459]
[1727459797818,0.8144,2707.3,2706.6,0.0459]
[1727459798224,4.50812,2707.3,2706.6,0.0459]
[1727459799628,0.8144,2707.3,2706.3,0.0459]
[1727459799832,3.69413,2707.0,2706.3,0.0459]
[1727459800137,3.69393,2707.2,2706.3,3.74095]
[1727459800138,3.69404,2707.1,2706.3,3.74095]
[1727459800360,3.69412,2707.0,2706.3,3.74095]
[1727459800538,3.69412,2707.0,2706.3,4.82871891]
[1727459800735,3.69412,2707.0,2706.3,1.13366891]
[1727459801527,3.69412,2707.0,2706.3,4.82872891]
[1727459801740,3.69412,2707.0,2706.3,3.74096]
[1727459802572,3.69419,2707.0,2706.3,3.74088]
[1727459803083,3.69438,2706.9,2706.3,0.0459]
[1727459803365,3.69398,2707.2,2706.4,4.06892]
[1727459803675,3.69398,2707.2,2706.5,3.69478]
[1727459803835,4.50813,2707.3,2706.4,3.69481]
[1727459804163,3.694,2707.1,2706.5,3.6948]
[1727459804376,3.694,2707.1,2706.4,7.763751]
[1727459804575,3.694,2707.1,2706.4,4.068881]
[1727459804867,3.69422,2707.0,2706.4,4.068881]
[1727459805078,3.69427,2706.9,2706.3,0.0459]
[1727459805370,3.69442,2706.8,2706.2,3.69509]
[1727459805535,3.69427,2706.9,2706.3,0.0459]
[1727459805758,3.69427,2706.9,2706.3,3.74097]
[1727459806398,3.69444,2706.8,2706.3,0.0459]
[1727459808382,3.69461,2706.7,2706.3,0.0459]
[1727459810596,3.69477,2706.6,2706.3,0.0459]
[1727459811768,3.69454,2706.7,2706.3,0.0459]
[1727459812361,3.69486,2706.5,2706.3,0.0459]
[1727459812671,3.69486,2706.5,2705.4,11.831418]
[1727459812672,3.69569,2705.9,2705.4,11.831418]
[1727459812996,3.69569,2705.9,2705.4,0.785168]
[1727459813206,3.69644,2705.4,2705.1,0.0459]
[1727459813712,3.69613,2705.6,2705.1,0.0459]
[1727459813713,3.69618,2705.5,2705.1,0.0459]
[1727459813866,3.69618,2705.5,2705.1,0.420182]
[1727459814208,3.69613,2705.6,2705.1,0.420182]
[1727459814703,3.69613,2705.6,2705.1,4.116832]
[1727459816210,3.69613,2705.6,2705.1,7.813472]
[1727459817306,3.69613,2705.6,2705.2,3.69657]
[1727459817803,3.69613,2705.6,2705.1,7.813472]
[1727459818007,3.69613,2705.6,2705.1,4.116822]
[1727459818514,3.69613,2705.6,2705.1,7.813472]
[1727459818912,3.69613,2705.6,2705.1,4.116822]
[1727459819475,3.69613,2705.6,2705.1,7.813452]
[1727459819821,3.69594,2705.7,2705.1,3.69663]
[1727459820111,3.69594,2705.7,2704.9,3.69692]
[1727459820112,3.69624,2705.5,2705.0,3.69679]
[1727459820527,3.69594,2705.7,2705.0,0.743961]
[1727459820680,3.69569,2705.9,2705.4,3.69623]
[1727459820880,3.69557,2706.0,2705.4,4.4355]
[1727459821082,3.69529,2706.2,2705.6,3.69595]
[1727459821290,4.46618,2706.3,2705.7,4.480938]
[1727459821619,4.46618,2706.3,2705.7,3.74173]
[1727459821785,4.46618,2706.3,2705.8,3.69576]
[1727459821987,4.46617,2706.3,2705.8,3.69576]
[1727459823421,8.16138,2706.3,2705.8,3.69576]
[1727459823722,4.46617,2706.3,2705.8,3.69576]
[1727459824622,4.46617,2706.3,2705.7,0.0459]
[1727459824623,3.69523,2706.2,2705.7,0.0459]
[1727459824787,3.69543,2706.1,2705.6,3.69602]
[1727459825632,3.69523,2706.2,2705.6,3.69594]
[1727459825782,3.69537,2706.1,2705.7,3.69589]
[1727459825982,3.69537,2706.1,2705.7,4.065484]
[1727459826203,3.69523,2706.2,2705.7,4.065484]
[1727459826404,3.69523,2706.2,2705.8,3.69576]
[1727459827321,7.39058,2706.2,2705.7,0.369594]
[1727459827485,3.69523,2706.2,2705.7,4.065464]
[1727459827685,7.39055,2706.2,2705.7,4.065464]
[1727459827885,3.69523,2706.2,2705.7,4.065464]
[1727459828122,3.69509,2706.3,2705.8,4.4718004]
[1727459828420,3.69509,2706.3,2705.8,3.69566]
[1727459829185,3.6951,2706.3,2705.7,0.369594]
[1727459829414,3.6951,2706.3,2705.8,3.74159]
[1727459829629,4.03357914,2707.0,2705.7,0.369594]
[1727459829630,3.69556,2706.0,2705.7,0.369594]
[1727459829838,3.69556,2706.0,2705.5,3.6961]
[1727459830130,3.69571,2705.9,2705.5,1.1092]
[1727459830327,0.7922,2706.2,2705.3,7.35]
[1727459830530,3.69544,2706.1,2705.5,3.69605]
[1727459830692,3.69569,2705.9,2705.4,3.69629]
[1727459830894,3.69569,2705.9,2705.4,5.16406711]
[1727459831086,3.69554,2706.0,2705.4,5.16406711]
[1727459831299,3.69583,2705.8,2705.3,11.04643]
[1727459831508,3.69583,2705.8,2705.4,3.69629]
[1727459831700,3.69556,2706.0,2705.5,3.6961]
[1727459831886,3.69556,2706.0,2705.5,5.170332]
[1727459832897,3.69543,2706.1,2705.7,3.69587]
[1727459833196,3.69516,2706.3,2705.9,3.6956]
[1727459833602,3.69516,2706.3,2705.8,3.69575]
[1727459833603,3.69518,2706.3,2705.8,3.69575]
[1727459833922,3.69518,2706.3,2705.8,4.069927]
[1727459834733,3.69548,2706.1,2705.5,12.45191314]
[1727459834890,3.69548,2706.1,2705.5,10.97768114]
[1727459835085,3.69556,2706.0,2705.5,3.69607]
[1727459835330,3.69548,2706.1,2705.5,3.69607]